[Event "Early-Titled-Tuesday-Blitz-February-13-2024"]
[Site "Chess.com"]
[Date "2024.02.13"]
[Round "1"]
[White "NovakRatko"]
[Black "wannabe2700"]
[Result "0-1"]
[WhiteElo "2349"]
[BlackElo "2680"]
[TimeControl "180+1"]
[EndTime "8:07:47 PST"]
[Termination "wannabe2700 won on time"]

1. d4 {[%clk 0:02:39.6]} 1... Nf6 {[%clk 0:02:58.8]} 2. c4 {[%clk 0:02:39.5]}
2... e6 {[%clk 0:02:59]} 3. a3 {[%clk 0:02:38.7]} 3... c5 {[%clk 0:02:57.1]} 4.
d5 {[%clk 0:02:38.4]} 4... exd5 {[%clk 0:02:57]} 5. cxd5 {[%clk 0:02:39.3]} 5...
g6 {[%clk 0:02:57.2]} 6. Nc3 {[%clk 0:02:40]} 6... d6 {[%clk 0:02:56.6]} 7. e4
{[%clk 0:02:40.4]} 7... Bg7 {[%clk 0:02:56.9]} 8. f3 {[%clk 0:02:41.2]} 8... O-O
{[%clk 0:02:56.6]} 9. Bg5 {[%clk 0:02:41.7]} 9... h6 {[%clk 0:02:56.3]} 10. Bf4
{[%clk 0:02:40.9]} 10... a6 {[%clk 0:02:54.8]} 11. Qd2 {[%clk 0:02:40.9]} 11...
g5 {[%clk 0:02:52.9]} 12. Be3 {[%clk 0:02:40.8]} 12... b5 {[%clk 0:02:53.2]} 13.
Bd3 {[%clk 0:02:41.3]} 13... Nbd7 {[%clk 0:02:47.7]} 14. Nge2 {[%clk 0:02:40.2]}
14... Ne5 {[%clk 0:02:47]} 15. b4 {[%clk 0:02:37.3]} 15... Nxd3+ {[%clk
0:02:34.5]} 16. Qxd3 {[%clk 0:02:35]} 16... c4 {[%clk 0:02:35.4]} 17. Qd2 {[%clk
0:02:33.4]} 17... Re8 {[%clk 0:02:33.8]} 18. Nd4 {[%clk 0:02:31.1]} 18... Nh5
{[%clk 0:02:25.5]} 19. Nc6 {[%clk 0:02:26.7]} 19... Qc7 {[%clk 0:02:13.5]} 20.
g4 {[%clk 0:02:18.3]} 20... Nf4 {[%clk 0:02:05.1]} 21. O-O {[%clk 0:02:14.7]}
21... Nd3 {[%clk 0:01:58.9]} 22. Bd4 {[%clk 0:02:10.3]} 22... Be5 {[%clk
0:01:07.3]} 23. Nxe5 {[%clk 0:02:07.1]} 23... dxe5 {[%clk 0:01:06.3]} 24. Be3
{[%clk 0:02:03.4]} 24... Bd7 {[%clk 0:01:06.5]} 25. h4 {[%clk 0:02:02.9]} 25...
f6 {[%clk 0:01:06.2]} 26. hxg5 {[%clk 0:02:02.2]} 26... hxg5 {[%clk 0:01:06.2]}
27. Kg2 {[%clk 0:02:02.8]} 27... Kg7 {[%clk 0:01:05.9]} 28. Rh1 {[%clk
0:02:02.7]} 28... Rh8 {[%clk 0:01:02.9]} 29. Bxg5 {[%clk 0:02:01.9]} 29... fxg5
{[%clk 0:01:03]} 30. Qxg5+ {[%clk 0:02:00.8]} 30... Kf7 {[%clk 0:01:03.4]} 31.
d6 {[%clk 0:01:25.4]} 31... Qxd6 {[%clk 0:00:59.3]} 32. Nd5 {[%clk 0:01:25.8]}
32... Rag8 {[%clk 0:00:49]} 33. Qe3 {[%clk 0:01:16.7]} 33... Bc6 {[%clk
0:00:35]} 34. Qa7+ {[%clk 0:01:00.9]} 34... Qd7 {[%clk 0:00:32]} 35. Qxa6 {[%clk
0:00:59.2]} 35... Bxd5 {[%clk 0:00:31.2]} 36. exd5 {[%clk 0:00:55]} 36... Qxd5
{[%clk 0:00:28.8]} 37. Qa7+ {[%clk 0:00:49.2]} 37... Kg6 {[%clk 0:00:27.9]} 38.
Qb6+ {[%clk 0:00:47.2]} 38... Kg5 {[%clk 0:00:27.8]} 39. Qe3+ {[%clk 0:00:37.4]}
39... Nf4+ {[%clk 0:00:27.5]} 40. Kg3 {[%clk 0:00:36.9]} 40... Qd4 {[%clk
0:00:25]} 41. Qe1 {[%clk 0:00:16.8]} 41... Qb2 {[%clk 0:00:17.5]} 42. Qf2 {[%clk
0:00:06.2]} 42... Qxf2+ {[%clk 0:00:12.7]} 43. Kxf2 {[%clk 0:00:06.3]} 43... Rd8
{[%clk 0:00:12.8]} 0-1

[Event "Early-Titled-Tuesday-Blitz-February-13-2024"]
[Site "Chess.com"]
[Date "2024.02.13"]
[Round "1"]
[White "Truequitos"]
[Black "SpongeBob_03"]
[Result "1-0"]
[WhiteElo "2602"]
[BlackElo "2217"]
[TimeControl "180+1"]
[EndTime "8:07:49 PST"]
[Termination "Truequitos won by resignation"]

1. Nf3 {[%clk 0:03:00]} 1... d5 {[%clk 0:02:51.9]} 2. g3 {[%clk 0:02:59.8]} 2...
Nf6 {[%clk 0:02:51.8]} 3. Bg2 {[%clk 0:03:00.3]} 3... e6 {[%clk 0:02:52.1]} 4.
O-O {[%clk 0:03:00.4]} 4... b6 {[%clk 0:02:52.1]} 5. d3 {[%clk 0:03:00.6]} 5...
Bb7 {[%clk 0:02:52.5]} 6. Nbd2 {[%clk 0:03:01]} 6... Nbd7 {[%clk 0:02:52.8]} 7.
Re1 {[%clk 0:03:01]} 7... Be7 {[%clk 0:02:47.6]} 8. e4 {[%clk 0:03:01.3]} 8...
dxe4 {[%clk 0:02:47.8]} 9. dxe4 {[%clk 0:03:00.7]} 9... e5 {[%clk 0:02:48.5]}
10. c3 {[%clk 0:02:59.1]} 10... Nc5 {[%clk 0:02:46.9]} 11. Qc2 {[%clk
0:02:58.1]} 11... Nd3 {[%clk 0:02:45.8]} 12. Re3 {[%clk 0:02:55.9]} 12... Nxf2
{[%clk 0:02:34.1]} 13. Kxf2 {[%clk 0:02:55.6]} 13... Ng4+ {[%clk 0:02:33.6]} 14.
Ke2 {[%clk 0:02:46.8]} 14... Nxe3 {[%clk 0:02:20.7]} 15. Qa4+ {[%clk 0:02:36.4]}
15... c6 {[%clk 0:02:11]} 16. Kxe3 {[%clk 0:02:35.9]} 16... Bc5+ {[%clk
0:02:11.3]} 17. Ke2 {[%clk 0:02:35.2]} 17... f6 {[%clk 0:02:07.4]} 18. b4 {[%clk
0:02:32.4]} 18... Bd6 {[%clk 0:02:07.6]} 19. Qb3 {[%clk 0:02:22.2]} 19... a5
{[%clk 0:01:59.5]} 20. b5 {[%clk 0:02:16.3]} 20... Qd7 {[%clk 0:01:47]} 21. Nc4
{[%clk 0:02:08.2]} 21... cxb5 {[%clk 0:01:38.4]} 22. Nxb6 {[%clk 0:02:07.5]}
22... Qc6 {[%clk 0:01:32.8]} 23. Qe6+ {[%clk 0:01:48.7]} 23... Be7 {[%clk
0:01:15.5]} 24. Qxc6+ {[%clk 0:01:46.7]} 24... Bxc6 {[%clk 0:01:16.4]} 25. Nxa8
{[%clk 0:01:45.5]} 25... Bxa8 {[%clk 0:01:17.3]} 26. Ne1 {[%clk 0:01:34.5]}
26... O-O {[%clk 0:01:16.5]} 27. Nd3 {[%clk 0:01:30.7]} 27... Rc8 {[%clk
0:01:15.9]} 28. Bd2 {[%clk 0:01:29.6]} 28... Rc4 {[%clk 0:01:15.5]} 29. Rb1
{[%clk 0:01:23.6]} 29... Bc6 {[%clk 0:00:51.5]} 30. Nb2 {[%clk 0:01:19.5]} 30...
Rc5 {[%clk 0:00:51.4]} 31. Kd3 {[%clk 0:01:10]} 31... b4 {[%clk 0:00:27.6]} 32.
c4 {[%clk 0:01:02.6]} 32... Bb7 {[%clk 0:00:25]} 33. Na4 {[%clk 0:01:00.7]}
33... Rc6 {[%clk 0:00:25.2]} 34. Be3 {[%clk 0:00:44.6]} 34... Ba6 {[%clk
0:00:24.1]} 35. Rc1 {[%clk 0:00:41.1]} 35... Rc8 {[%clk 0:00:15.6]} 36. Nb6
{[%clk 0:00:40.9]} 36... Rc6 {[%clk 0:00:15.8]} 37. Nd5 {[%clk 0:00:41.4]} 37...
Bd8 {[%clk 0:00:14.2]} 38. Bh3 {[%clk 0:00:40.9]} 38... Kf7 {[%clk 0:00:14]} 39.
Bd7 {[%clk 0:00:41.1]} 39... Rd6 {[%clk 0:00:14.5]} 40. Bb5 {[%clk 0:00:40.4]}
40... Bb7 {[%clk 0:00:15.2]} 41. c5 {[%clk 0:00:39.1]} 41... Re6 {[%clk
0:00:09.9]} 42. c6 {[%clk 0:00:36.6]} 42... Bc8 {[%clk 0:00:10.2]} 43. c7 {[%clk
0:00:33.7]} 43... Be7 {[%clk 0:00:10.4]} 44. Bc4 {[%clk 0:00:34.3]} 44... Rd6
{[%clk 0:00:05.3]} 45. Bc5 {[%clk 0:00:34.5]} 45... Rd7 {[%clk 0:00:05.6]} 46.
Bb5 {[%clk 0:00:32.1]} 46... Rd6 {[%clk 0:00:01]} 47. Bxd6 {[%clk 0:00:31.6]}
47... Bxd6 {[%clk 0:00:01.9]} 48. Rc6 {[%clk 0:00:31.5]} 48... Be7 {[%clk
0:00:02.5]} 49. Nb6 {[%clk 0:00:31.3]} 1-0

[Event "Early-Titled-Tuesday-Blitz-February-13-2024"]
[Site "Chess.com"]
[Date "2024.02.13"]
[Round "1"]
[White "Cosi43"]
[Black "IngOscarArdila"]
[Result "1-0"]
[WhiteElo "2631"]
[BlackElo "2281"]
[TimeControl "180+1"]
[EndTime "8:07:51 PST"]
[Termination "Cosi43 won by checkmate"]

1. d4 {[%clk 0:03:00.9]} 1... Nf6 {[%clk 0:02:59.6]} 2. Nf3 {[%clk 0:03:01]}
2... g6 {[%clk 0:02:54.9]} 3. c4 {[%clk 0:02:59.3]} 3... Bg7 {[%clk 0:02:54.9]}
4. Nc3 {[%clk 0:02:59.2]} 4... O-O {[%clk 0:02:53.7]} 5. Bg5 {[%clk 0:02:59.7]}
5... d6 {[%clk 0:02:51.7]} 6. e3 {[%clk 0:02:59.2]} 6... h6 {[%clk 0:02:51.4]}
7. Bh4 {[%clk 0:02:58.1]} 7... Bg4 {[%clk 0:02:48.6]} 8. h3 {[%clk 0:02:52.1]}
8... Bxf3 {[%clk 0:02:48]} 9. Qxf3 {[%clk 0:02:52]} 9... c6 {[%clk 0:02:47.6]}
10. Bd3 {[%clk 0:02:50.1]} 10... Nbd7 {[%clk 0:02:46.9]} 11. O-O {[%clk
0:02:40.6]} 11... Qb6 {[%clk 0:02:46.1]} 12. Qe2 {[%clk 0:02:36]} 12... e5
{[%clk 0:02:40.1]} 13. d5 {[%clk 0:01:40.1]} 13... cxd5 {[%clk 0:02:35.7]} 14.
Nxd5 {[%clk 0:01:33.4]} 14... Nxd5 {[%clk 0:02:35]} 15. cxd5 {[%clk 0:01:33.8]}
15... Nc5 {[%clk 0:02:35]} 16. Bc4 {[%clk 0:01:27.2]} 16... f5 {[%clk
0:02:25.3]} 17. b4 {[%clk 0:01:18.4]} 17... Qxb4 {[%clk 0:02:22.7]} 18. Be7
{[%clk 0:01:17.4]} 18... Rfe8 {[%clk 0:02:15]} 19. Bxd6 {[%clk 0:01:16.9]} 19...
Qb6 {[%clk 0:02:10.4]} 20. Bxc5 {[%clk 0:01:10.4]} 20... Qxc5 {[%clk 0:02:10.6]}
21. d6+ {[%clk 0:01:03.7]} 21... Kh7 {[%clk 0:02:08.5]} 22. Rfd1 {[%clk
0:01:02.6]} 22... Rad8 {[%clk 0:02:05]} 23. Rd5 {[%clk 0:00:57.6]} 23... Qb4
{[%clk 0:01:51.4]} 24. Rad1 {[%clk 0:00:57.1]} 24... e4 {[%clk 0:01:42.1]} 25.
h4 {[%clk 0:00:41.4]} 25... Re5 {[%clk 0:01:37.9]} 26. Rxe5 {[%clk 0:00:20.8]}
26... Bxe5 {[%clk 0:01:36.8]} 27. d7 {[%clk 0:00:21.7]} 27... a6 {[%clk
0:01:24.6]} 28. Bf7 {[%clk 0:00:20.3]} 28... Qe7 {[%clk 0:01:21.5]} 29. Be8
{[%clk 0:00:19.8]} 29... Qxh4 {[%clk 0:01:18.2]} 30. g3 {[%clk 0:00:17.4]} 30...
Bxg3 {[%clk 0:01:04.6]} 31. fxg3 {[%clk 0:00:18.3]} 31... Qxg3+ {[%clk
0:01:04.9]} 32. Kf1 {[%clk 0:00:18.7]} 32... Qh3+ {[%clk 0:01:01]} 33. Qg2
{[%clk 0:00:18.9]} 33... Qh5 {[%clk 0:00:58.4]} 34. Rd6 {[%clk 0:00:16.2]} 34...
Kh8 {[%clk 0:00:14.1]} 35. Qxg6 {[%clk 0:00:10.3]} 35... Qf3+ {[%clk 0:00:12.2]}
36. Kg1 {[%clk 0:00:05.5]} 36... Qxe3+ {[%clk 0:00:12.5]} 37. Kh2 {[%clk
0:00:05.4]} 37... Qf4+ {[%clk 0:00:12.4]} 38. Qg3 {[%clk 0:00:04.5]} 38... Qc1
{[%clk 0:00:04.6]} 39. Qe5+ {[%clk 0:00:04.4]} 39... Kh7 {[%clk 0:00:03]} 40.
Bg6+ {[%clk 0:00:04.5]} 40... Kg8 {[%clk 0:00:02]} 41. Qe6+ {[%clk 0:00:04.4]}
41... Kg7 {[%clk 0:00:01.8]} 42. Qf6+ {[%clk 0:00:04.6]} 42... Kg8 {[%clk
0:00:01.9]} 43. Qf7+ {[%clk 0:00:05.3]} 43... Kh8 {[%clk 0:00:02.1]} 44. Qh7#
{[%clk 0:00:06.2]} 1-0

[Event "Early-Titled-Tuesday-Blitz-February-13-2024"]
[Site "Chess.com"]
[Date "2024.02.13"]
[Round "1"]
[White "Alexei_Kornev"]
[Black "UK_23"]
[Result "1-0"]
[WhiteElo "2703"]
[BlackElo "2371"]
[TimeControl "180+1"]
[EndTime "8:07:52 PST"]
[Termination "Alexei_Kornev won by resignation"]

1. e4 {[%clk 0:02:57.7]} 1... e5 {[%clk 0:02:57.3]} 2. Nf3 {[%clk 0:02:57.4]}
2... Nf6 {[%clk 0:02:56.9]} 3. Nxe5 {[%clk 0:02:51.2]} 3... Nxe4 {[%clk
0:02:57.2]} 4. Qe2 {[%clk 0:02:49]} 4... Qe7 {[%clk 0:02:57.3]} 5. Qxe4 {[%clk
0:02:48.6]} 5... d6 {[%clk 0:02:58]} 6. d4 {[%clk 0:02:48.9]} 6... dxe5 {[%clk
0:02:58.3]} 7. dxe5 {[%clk 0:02:47.2]} 7... Nc6 {[%clk 0:02:57.9]} 8. Nc3 {[%clk
0:02:47.1]} 8... Qxe5 {[%clk 0:02:57.9]} 9. Bf4 {[%clk 0:02:47.4]} 9... Qxe4+
{[%clk 0:02:51.1]} 10. Nxe4 {[%clk 0:02:48.3]} 10... Bb4+ {[%clk 0:02:47.6]} 11.
c3 {[%clk 0:02:47.5]} 11... Ba5 {[%clk 0:02:48.1]} 12. O-O-O {[%clk 0:02:46.3]}
12... O-O {[%clk 0:02:47.6]} 13. Bc4 {[%clk 0:02:45]} 13... Bb6 {[%clk
0:02:43.5]} 14. Rhe1 {[%clk 0:02:43.1]} 14... Bf5 {[%clk 0:02:40.1]} 15. Bg3
{[%clk 0:02:40.1]} 15... Rad8 {[%clk 0:02:35.3]} 16. Rxd8 {[%clk 0:02:37.7]}
16... Rxd8 {[%clk 0:02:36.2]} 17. Ng5 {[%clk 0:02:36.5]} 17... Bg6 {[%clk
0:02:30.3]} 18. Nf3 {[%clk 0:02:29.5]} 18... h6 {[%clk 0:02:23.5]} 19. a3 {[%clk
0:02:25]} 19... a5 {[%clk 0:02:22.7]} 20. Ne5 {[%clk 0:02:18.3]} 20... Nxe5
{[%clk 0:02:22.3]} 21. Rxe5 {[%clk 0:02:17.5]} 21... Kf8 {[%clk 0:02:09.1]} 22.
b4 {[%clk 0:02:02.4]} 22... axb4 {[%clk 0:02:00.7]} 23. axb4 {[%clk 0:02:02.2]}
23... Re8 {[%clk 0:01:44.1]} 24. Rxe8+ {[%clk 0:02:01.7]} 24... Kxe8 {[%clk
0:01:45]} 25. Kd2 {[%clk 0:02:02.1]} 25... Ke7 {[%clk 0:01:43.5]} 26. f3 {[%clk
0:02:01.2]} 26... c6 {[%clk 0:01:44]} 27. Bb3 {[%clk 0:01:58.6]} 27... Bf5
{[%clk 0:01:43.8]} 28. c4 {[%clk 0:01:56.7]} 28... Bd4 {[%clk 0:01:42.3]} 29. c5
{[%clk 0:01:54.5]} 29... Be6 {[%clk 0:01:41.1]} 30. Bc2 {[%clk 0:01:50.6]} 30...
f5 {[%clk 0:01:25.9]} 31. Bf4 {[%clk 0:01:47.1]} 31... g5 {[%clk 0:01:25.1]} 32.
Be3 {[%clk 0:01:47.4]} 32... Bg7 {[%clk 0:01:20.5]} 33. f4 {[%clk 0:01:45.7]}
33... g4 {[%clk 0:01:19.1]} 34. Bd3 {[%clk 0:01:41.1]} 34... Bf6 {[%clk
0:01:19.1]} 35. Bf2 {[%clk 0:01:39.3]} 35... h5 {[%clk 0:01:19.2]} 36. b5 {[%clk
0:01:34.1]} 36... cxb5 {[%clk 0:01:15.4]} 37. Bxb5 {[%clk 0:01:33.5]} 37... Bd5
{[%clk 0:01:16.1]} 38. g3 {[%clk 0:01:33.3]} 38... Ke6 {[%clk 0:01:16.4]} 39.
Kd3 {[%clk 0:01:32.8]} 39... Be7 {[%clk 0:01:14.5]} 40. Bd4 {[%clk 0:01:32.7]}
40... Bf8 {[%clk 0:01:14]} 41. Be8 {[%clk 0:01:29.2]} 41... h4 {[%clk
0:01:06.3]} 42. gxh4 {[%clk 0:01:30.1]} 42... Bh6 {[%clk 0:01:06.1]} 43. Be3
{[%clk 0:01:29]} 43... Ke7 {[%clk 0:01:01.7]} 44. Bb5 {[%clk 0:01:27.8]} 44...
Ke6 {[%clk 0:01:01.7]} 45. h5 {[%clk 0:01:25.4]} 45... Ke7 {[%clk 0:01:00.3]}
46. Bc4 {[%clk 0:01:22.2]} 46... Bc6 {[%clk 0:00:58.5]} 47. Kd4 {[%clk
0:01:19.1]} 47... Bg7+ {[%clk 0:00:57.7]} 48. Kd3 {[%clk 0:01:19]} 48... Be8
{[%clk 0:00:57.7]} 49. Bd4 {[%clk 0:01:18]} 49... Bh6 {[%clk 0:00:55.4]} 50. Be5
{[%clk 0:01:17.9]} 50... Bxh5 {[%clk 0:00:55.4]} 51. Bd5 {[%clk 0:01:18]} 51...
Be8 {[%clk 0:00:42]} 52. Bxb7 {[%clk 0:01:16.8]} 52... Bb5+ {[%clk 0:00:42.3]}
53. Kd4 {[%clk 0:01:16.9]} 53... Kd7 {[%clk 0:00:41.3]} 54. Bd5 {[%clk 0:01:16]}
54... Bc6 {[%clk 0:00:41.1]} 55. Bc4 {[%clk 0:01:13.1]} 55... Bf8 {[%clk
0:00:39.2]} 56. Bd3 {[%clk 0:01:10.7]} 56... Ke6 {[%clk 0:00:38.4]} 57. Ba6
{[%clk 0:01:10.3]} 57... Kd7 {[%clk 0:00:38.4]} 58. Bd3 {[%clk 0:01:06.9]} 58...
Ke6 {[%clk 0:00:38.7]} 59. Bc2 {[%clk 0:01:04.9]} 59... Bh6 {[%clk 0:00:37.5]}
60. Bb3+ {[%clk 0:01:02.7]} 60... Kd7 {[%clk 0:00:37.7]} 61. Bd5 {[%clk
0:00:58.1]} 61... Bf8 {[%clk 0:00:36.7]} 62. Bf6 {[%clk 0:00:55.3]} 62... Kc7
{[%clk 0:00:22.3]} 63. Bxc6 {[%clk 0:00:52.3]} 63... Kxc6 {[%clk 0:00:23.2]} 64.
Ke5 {[%clk 0:00:52.8]} 64... Kxc5 {[%clk 0:00:18.6]} 65. Kxf5 {[%clk 0:00:53.4]}
65... Kd5 {[%clk 0:00:19.2]} 66. Kxg4 {[%clk 0:00:53.4]} 66... Ke6 {[%clk
0:00:19.4]} 67. Bg5 {[%clk 0:00:53.1]} 67... Kf7 {[%clk 0:00:19.9]} 68. h4
{[%clk 0:00:53.2]} 68... Bd6 {[%clk 0:00:20.5]} 69. h5 {[%clk 0:00:53.6]} 69...
Kg7 {[%clk 0:00:21.1]} 70. Kf5 {[%clk 0:00:53]} 70... Kf7 {[%clk 0:00:21.1]} 71.
h6 {[%clk 0:00:52.6]} 71... Bc5 {[%clk 0:00:21.7]} 72. Bf6 {[%clk 0:00:50.5]}
72... Kg8 {[%clk 0:00:22]} 73. Kg6 {[%clk 0:00:50.3]} 1-0

[Event "Early-Titled-Tuesday-Blitz-February-13-2024"]
[Site "Chess.com"]
[Date "2024.02.13"]
[Round "1"]
[White "pifion"]
[Black "hsd2016"]
[Result "1-0"]
[WhiteElo "2659"]
[BlackElo "2328"]
[TimeControl "180+1"]
[EndTime "8:07:52 PST"]
[Termination "pifion won on time"]

1. d4 {[%clk 0:03:00.9]} 1... d5 {[%clk 0:02:55.5]} 2. c4 {[%clk 0:03:00.8]}
2... c6 {[%clk 0:02:53.3]} 3. Nf3 {[%clk 0:03:01.2]} 3... Nf6 {[%clk 0:02:49.5]}
4. e3 {[%clk 0:03:01.8]} 4... dxc4 {[%clk 0:02:45.6]} 5. Bxc4 {[%clk 0:03:00.6]}
5... e6 {[%clk 0:02:46.3]} 6. O-O {[%clk 0:02:59.3]} 6... Be7 {[%clk 0:02:45.8]}
7. Qe2 {[%clk 0:02:56.9]} 7... b5 {[%clk 0:02:42.6]} 8. Bd3 {[%clk 0:02:55.2]}
8... O-O {[%clk 0:02:37.4]} 9. Rd1 {[%clk 0:02:55.2]} 9... Bb7 {[%clk
0:02:34.5]} 10. a4 {[%clk 0:02:51.5]} 10... a6 {[%clk 0:02:33.6]} 11. e4 {[%clk
0:02:47.1]} 11... Nbd7 {[%clk 0:02:31.1]} 12. Bf4 {[%clk 0:02:41.8]} 12... Qb6
{[%clk 0:02:19.8]} 13. Nc3 {[%clk 0:02:35.2]} 13... b4 {[%clk 0:02:14.6]} 14. a5
{[%clk 0:02:35.2]} 14... Qa7 {[%clk 0:02:12]} 15. Na4 {[%clk 0:02:35.2]} 15...
c5 {[%clk 0:02:07.6]} 16. Rac1 {[%clk 0:01:37.6]} 16... cxd4 {[%clk 0:01:56.5]}
17. Rc7 {[%clk 0:01:36.5]} 17... Rfd8 {[%clk 0:01:50.5]} 18. Rdc1 {[%clk
0:01:32.5]} 18... Rac8 {[%clk 0:01:41]} 19. Ne5 {[%clk 0:01:31.5]} 19... Nxe5
{[%clk 0:01:38.9]} 20. Bxe5 {[%clk 0:01:31.2]} 20... Rxc7 {[%clk 0:01:33.8]} 21.
Bxc7 {[%clk 0:01:26.5]} 21... Re8 {[%clk 0:01:18.9]} 22. Bb6 {[%clk 0:01:05.5]}
22... Qb8 {[%clk 0:01:17.5]} 23. Bxd4 {[%clk 0:01:02.7]} 23... Qf4 {[%clk
0:01:15.4]} 24. Be3 {[%clk 0:01:00.9]} 24... Qe5 {[%clk 0:01:10.7]} 25. Nc5
{[%clk 0:00:56.6]} 25... Bc8 {[%clk 0:00:38.9]} 26. f4 {[%clk 0:00:51.1]} 26...
Qb8 {[%clk 0:00:29.5]} 27. Bxa6 {[%clk 0:00:30.7]} 27... Bxc5 {[%clk 0:00:26.6]}
28. Rxc5 {[%clk 0:00:25.7]} 28... Nxe4 {[%clk 0:00:23]} 29. Rxc8 {[%clk
0:00:17.6]} 29... Rxc8 {[%clk 0:00:22.7]} 30. Bxc8 {[%clk 0:00:18.3]} 30... Qxc8
{[%clk 0:00:23.6]} 31. Qd3 {[%clk 0:00:17.2]} 31... f5 {[%clk 0:00:22.6]} 32. a6
{[%clk 0:00:16.5]} 32... Nc5 {[%clk 0:00:16.5]} 33. Qc4 {[%clk 0:00:16.2]} 33...
Qxa6 {[%clk 0:00:15.6]} 34. Qxc5 {[%clk 0:00:15.9]} 34... b3 {[%clk 0:00:14.9]}
35. Kf2 {[%clk 0:00:16.3]} 35... Qd3 {[%clk 0:00:14.9]} 36. Bd4 {[%clk 0:00:16]}
36... Qd2+ {[%clk 0:00:14.7]} 37. Kf3 {[%clk 0:00:16.2]} 37... Qd3+ {[%clk
0:00:13.5]} 38. Be3 {[%clk 0:00:16.9]} 38... Qd1+ {[%clk 0:00:13.8]} 39. Kf2
{[%clk 0:00:17.1]} 39... Qd3 {[%clk 0:00:13.5]} 40. Qc8+ {[%clk 0:00:16.5]}
40... Kf7 {[%clk 0:00:13.9]} 41. Qc5 {[%clk 0:00:15.9]} 41... Kg6 {[%clk
0:00:12.7]} 42. h3 {[%clk 0:00:14.7]} 42... h5 {[%clk 0:00:12.7]} 43. Qe5 {[%clk
0:00:14.8]} 43... Qc2+ {[%clk 0:00:12]} 44. Kg1 {[%clk 0:00:14.7]} 44... Kf7
{[%clk 0:00:12.3]} 45. Bd4 {[%clk 0:00:14.3]} 45... Qc1+ {[%clk 0:00:08.4]} 46.
Kh2 {[%clk 0:00:14.6]} 46... g5 {[%clk 0:00:05]} 47. Qf6+ {[%clk 0:00:14.7]}
47... Ke8 {[%clk 0:00:05.3]} 48. Qxe6+ {[%clk 0:00:15.2]} 48... Kd8 {[%clk
0:00:05.6]} 49. Bb6+ {[%clk 0:00:15.6]} 1-0

[Event "Early-Titled-Tuesday-Blitz-February-13-2024"]
[Site "Chess.com"]
[Date "2024.02.13"]
[Round "1"]
[White "N18player"]
[Black "lilleper1"]
[Result "0-1"]
[WhiteElo "2525"]
[BlackElo "2975"]
[TimeControl "180+1"]
[EndTime "8:07:53 PST"]
[Termination "lilleper1 won by resignation"]

1. Nf3 {[%clk 0:02:59.7]} 1... Nf6 {[%clk 0:02:58.9]} 2. c4 {[%clk 0:02:58]}
2... c5 {[%clk 0:02:56.6]} 3. g3 {[%clk 0:02:58.4]} 3... Nc6 {[%clk 0:02:56.4]}
4. d4 {[%clk 0:02:59]} 4... cxd4 {[%clk 0:02:55.4]} 5. Nxd4 {[%clk 0:02:59.9]}
5... g6 {[%clk 0:02:54.4]} 6. Bg2 {[%clk 0:02:58.3]} 6... Bg7 {[%clk 0:02:54.7]}
7. Nc3 {[%clk 0:02:58.4]} 7... O-O {[%clk 0:02:55]} 8. O-O {[%clk 0:02:58.4]}
8... Ng4 {[%clk 0:02:54.9]} 9. e3 {[%clk 0:02:48.8]} 9... d6 {[%clk 0:02:54.7]}
10. Nxc6 {[%clk 0:02:46.3]} 10... bxc6 {[%clk 0:02:54.7]} 11. Bxc6 {[%clk
0:02:46.6]} 11... Rb8 {[%clk 0:02:54.5]} 12. Bg2 {[%clk 0:02:40]} 12... Ne5
{[%clk 0:02:51.6]} 13. Qe2 {[%clk 0:02:36.8]} 13... Ba6 {[%clk 0:02:45.8]} 14.
Nb5 {[%clk 0:02:18.9]} 14... Nxc4 {[%clk 0:02:40.8]} 15. Nxa7 {[%clk 0:02:17]}
15... Qb6 {[%clk 0:02:24.5]} 16. Nc6 {[%clk 0:02:13.5]} 16... Ne5 {[%clk
0:01:42.3]} 17. Nxe7+ {[%clk 0:02:12.1]} 17... Kh8 {[%clk 0:01:42.3]} 18. Qd1
{[%clk 0:02:11.3]} 18... Bxf1 {[%clk 0:01:38.1]} 19. Qxf1 {[%clk 0:02:10.9]}
19... Qc5 {[%clk 0:01:19.4]} 20. Nd5 {[%clk 0:02:05]} 20... Nc4 {[%clk
0:01:18.4]} 21. b4 {[%clk 0:01:51.2]} 21... Rxb4 {[%clk 0:01:11.7]} 22. Nxb4
{[%clk 0:01:39]} 22... Bxa1 {[%clk 0:01:10.9]} 23. Nd3 {[%clk 0:01:24.3]} 23...
Qa5 {[%clk 0:01:02.8]} 24. Nf4 {[%clk 0:01:18.8]} 24... Rc8 {[%clk 0:00:51.6]}
25. Bd5 {[%clk 0:01:15.2]} 25... Ne5 {[%clk 0:00:49.6]} 26. h4 {[%clk
0:01:03.2]} 26... Qc3 {[%clk 0:00:43.9]} 27. Ne2 {[%clk 0:00:54.8]} 27... Qd3
{[%clk 0:00:37.8]} 28. e4 {[%clk 0:00:51.1]} 28... Rc2 {[%clk 0:00:21.3]} 29.
Be3 {[%clk 0:00:44.7]} 29... Bb2 {[%clk 0:00:20]} 30. Nd4 {[%clk 0:00:31.8]}
30... Qxf1+ {[%clk 0:00:17.5]} 31. Kxf1 {[%clk 0:00:31.9]} 31... Bxd4 {[%clk
0:00:16.3]} 32. Bxd4 {[%clk 0:00:32.2]} 32... Rc1+ {[%clk 0:00:16.2]} 33. Ke2
{[%clk 0:00:26.9]} 33... Kg8 {[%clk 0:00:16.9]} 34. Bxe5 {[%clk 0:00:11.5]}
34... dxe5 {[%clk 0:00:16.7]} 35. Bb3 {[%clk 0:00:09.2]} 35... Kf8 {[%clk
0:00:15.7]} 36. Kf3 {[%clk 0:00:07.1]} 36... f6 {[%clk 0:00:15.6]} 37. Kg4
{[%clk 0:00:07.2]} 37... Rf1 {[%clk 0:00:15.3]} 38. f4 {[%clk 0:00:06]} 38...
h5+ {[%clk 0:00:15.3]} 39. Kh3 {[%clk 0:00:05.8]} 39... exf4 {[%clk 0:00:15.8]}
40. gxf4 {[%clk 0:00:06.1]} 40... Rxf4 {[%clk 0:00:15.4]} 41. Bd5 {[%clk
0:00:07]} 41... Rf2 {[%clk 0:00:14.7]} 42. a4 {[%clk 0:00:06.4]} 42... Rf3+
{[%clk 0:00:14.3]} 43. Kg2 {[%clk 0:00:06]} 43... Ra3 {[%clk 0:00:15.2]} 44. Bc6
{[%clk 0:00:05.9]} 44... Ke7 {[%clk 0:00:15.4]} 45. Bb5 {[%clk 0:00:04.8]} 45...
g5 {[%clk 0:00:15.2]} 46. hxg5 {[%clk 0:00:02.6]} 46... fxg5 {[%clk 0:00:16.1]}
47. e5 {[%clk 0:00:03]} 47... Ke6 {[%clk 0:00:15.6]} 48. Be8 {[%clk 0:00:03.9]}
48... h4 {[%clk 0:00:14.9]} 49. Bh5 {[%clk 0:00:04]} 49... Kxe5 {[%clk
0:00:15.1]} 50. Bg4 {[%clk 0:00:04.9]} 50... Kf4 {[%clk 0:00:15.1]} 51. Bd7
{[%clk 0:00:05.7]} 51... g4 {[%clk 0:00:14.3]} 0-1